[Event "European Online Club-ch-G 2021"]
[Site "Online"]
[Date "2021.03.27"]
[Round "4.7"]
[White "Frank, Adam"]
[Black "Karacsonyi, Gellert"]
[Result "0-1"]
[ECO "C03"]
[WhiteElo "2238"]
[BlackElo "2321"]
[Annotator "NA"]
[PlyCount "134"]
[EventDate "2021.03.27"]
[EventType "team-tourn"]
[EventCountry "NET"]
[SourceTitle "playchess.com"]
[Source "ChessBase"]
[SourceQuality "1"]
[TimeControl "900+5"]

1. e4 {[%emt 0:00:00]} e6 {[%emt 0:00:02]} 2. d4 {[%emt 0:00:02]} d5 {[%emt 0:00:01]} 3. Nd2 {[%emt 0:00:01]} Be7 {[%emt 0:00:02]} 4. Bd3 {[%emt 0:00:08]} c5 {[%emt 0:00:18]} 5. dxc5 {[%emt 0:00:08]} Nf6 {[%emt 0:00:10]} 6. exd5 {[%emt 0:01:04]} Nxd5 {[%emt 0:00:26]} 7. Nb3 {[%emt 0:00:13]} Qc7 {[%emt 0:00:36]} 8. Qg4 {[%emt 0:00:51]} O-O {[%emt 0:00:27]} 9. Ne2 {[%emt 0:02:34]} Nd7 {[%emt 0:01:14]} 10. O-O {[%emt 0:00:16]} N5f6 {[%emt 0:01:44]} 11. Qh4 {[%emt 0:00:26]} Nxc5 {[%emt 0:00:13]} 12. Nxc5 {[%emt 0:01:23]} Qxc5 {[%emt 0:00:00]} 13. Be3 {[%emt 0:00:09]} Qh5 {[%emt 0:00:34]} 14. Qg3 {[%emt 0:00:02]} Qg4 {[%emt 0:01:05]} 15. Qe5 {[%emt 0:00:20]} Nd5 {[%emt 0:01:00]} 16. h3 {[%emt 0:00:37]} Qh4 {[%emt 0:00:04]} 17. Bd4 {[%emt 0:01:59]} Bf6 {[%emt 0:00:34]} 18. Qe4 {[%emt 0:00:01]} Qxe4 {[%emt 0:00:03]} 19. Bxe4 {[%emt 0:00:02]} Bxd4 {[%emt 0:00:02]} 20. Nxd4 {[%emt 0:00:01]} Nf6 {[%emt 0:00:02]} 21. Bf3 {[%emt 0:00:08]} e5 {[%emt 0:00:03]} 22. Nb3 {[%emt 0:00:02]} Rb8 {[%emt 0:00:36]} 23. Rfe1 {[%emt 0:00:09]} Re8 {[%emt 0:00:03]} 24. Rad1 {[%emt 0:00:03]} Bf5 {[%emt 0:00:25]} 25. c3 {[%emt 0:00:22]} b6 {[%emt 0:00:18]} 26. g4 {[%emt 0:01:18]} Bg6 {[%emt 0:00:52]} 27. g5 {[%emt 0:00:43]} Nh5 {[%emt 0:00:04]} 28. Bxh5 {[%emt 0:00:01]} Bxh5 {[%emt 0:00:01]} 29. Rd7 {[%emt 0:00:01]} a5 {[%emt 0:00:12]} 30. Nd2 {[%emt 0:00:07]} Bg6 {[%emt 0:02:39]} 31. Nc4 {[%emt 0:00:19]} Bf5 {[%emt 0:00:13]} 32. Rd6 {[%emt 0:00:48]} Bxh3 {[%emt 0:00:04]} 33. Rxe5 {[%emt 0:00:19]} Rxe5 {[%emt 0:00:39]} 34. Nxe5 {[%emt 0:00:03]} Be6 {[%emt 0:00:01]} 35. Nc6 {[%emt 0:00:38]} Re8 {[%emt 0:00:11]} 36. Nd4 {[%emt 0:00:01]} Bxa2 {[%emt 0:00:31]} 37. Rxb6 {[%emt 0:00:14]} Kf8 {[%emt 0:01:34]} 38. Rb5 {[%emt 0:00:09]} Ra8 {[%emt 0:00:05]} 39. Kg2 {[%emt 0:01:12]} a4 {[%emt 0:00:10]} 40. Nc2 {[%emt 0:01:02]} Ke7 {[%emt 0:00:12]} 41. Kf3 {[%emt 0:00:07]} Kd6 {[%emt 0:00:09]} 42. Ke3 {[%emt 0:00:10]} Bc4 {[%emt 0:00:20]} 43. Rb7 {[%emt 0:00:08]} Bd5 {[%emt 0:00:04]} 44. Rb4 {[%emt 0:00:04]} Re8+ {[%emt 0:00:18]} 45. Kd2 {[%emt 0:00:04]} Ra8 {[%emt 0:00:07]} 46. Kd3 {[%emt 0:00:04]} Be6 {[%emt 0:00:10]} 47. c4 {[%emt 0:00:10]} Ra5 {[%emt 0:00:05]} 48. f4 {[%emt 0:00:06]} h5 {[%emt 0:00:06]} 49. gxh6 {[%emt 0:00:03]} gxh6 {[%emt 0:00:00]} 50. Kd4 {[%emt 0:00:06]} h5 {[%emt 0:00:04]} 51. Na3 {[%emt 0:00:10]} h4 {[%emt 0:00:05]} 52. Nb5+ {[%emt 0:00:05]} Kc6 {[%emt 0:00:07]} 53. Nc3 {[%emt 0:00:06]} h3 {[%emt 0:00:04]} 54. Ne4 {[%emt 0:00:02]} h2 {[%emt 0:00:04]} 55. Ng3 {[%emt 0:00:01]} a3 {[%emt 0:00:03]} 56. bxa3 {[%emt 0:00:10]} Rxa3 {[%emt 0:00:00]} 57. Rb2 {[%emt 0:00:07]} Rxg3 {[%emt 0:00:05]} 58. Rxh2 {[%emt 0:00:01]} Rf3 {[%emt 0:00:10]} 59. Rh4 {[%emt 0:00:02]} Rf1 {[%emt 0:00:06]} 60. Ke5 {[%emt 0:00:10]} Bxc4 {[%emt 0:00:03]} 61. Rh2 {[%emt 0:00:01]} Kd7 {[%emt 0:00:05]} 62. Rd2+ {[%emt 0:00:06]} Ke7 {[%emt 0:00:02]} 63. Rb2 {[%emt 0:00:03]} Re1+ {[%emt 0:00:04]} 64. Kf5 {[%emt 0:00:01]} Be6+ {[%emt 0:00:02]} 65. Kg5 {[%emt 0:00:01]} Rg1+ {[%emt 0:00:02]} 66. Kh5 {[%emt 0:00:03]} Kf6 {[%emt 0:00:03]} 67. Rb5 {[%emt 0:00:02]} Rh1# {[%emt 0:00:02]} 0-1

[Event "European Online Club-ch-G 2021"]
[Site "Online"]
[Date "2021.03.27"]
[Round "4.8"]
[White "Juhasz, Agoston"]
[Black "Paseka, Matyas"]
[Result "0-1"]
[ECO "B52"]
[WhiteElo "2356"]
[BlackElo "2069"]
[Annotator "NA"]
[PlyCount "74"]
[EventDate "2021.03.27"]
[EventType "team-tourn"]
[EventCountry "NET"]
[SourceTitle "playchess.com"]
[Source "ChessBase"]
[SourceQuality "1"]
[TimeControl "900+5"]

1. e4 {[%emt 0:00:00]} c5 {[%emt 0:00:02]} 2. Nf3 {[%emt 0:00:04]} d6 {[%emt 0:00:01]} 3. Bb5+ {[%emt 0:00:45]} Bd7 {[%emt 0:00:06]} 4. Bxd7+ {[%emt 0:00:03]} Qxd7 {[%emt 0:00:02]} 5. c4 {[%emt 0:00:05]} Nc6 {[%emt 0:00:07]} 6. d4 {[%emt 0:00:08]} cxd4 {[%emt 0:00:11]} 7. Nxd4 {[%emt 0:00:06]} g6 {[%emt 0:00:03]} 8. b3 {[%emt 0:00:11]} Bg7 {[%emt 0:00:22]} 9. Bb2 {[%emt 0:00:03]} Nf6 {[%emt 0:00:07]} 10. Nc3 {[%emt 0:00:23]} O-O {[%emt 0:00:12]} 11. O-O {[%emt 0:00:08]} Rac8 {[%emt 0:00:16]} 12. Rc1 {[%emt 0:00:11]} a6 {[%emt 0:00:14]} 13. f3 {[%emt 0:02:39]} Bh6 {[%emt 0:01:11]} 14. f4 {[%emt 0:02:24]} Bg7 {[%emt 0:03:27]} 15. Nd5 {[%emt 0:02:08]} Nxd5 {[%emt 0:01:49]} 16. exd5 {[%emt 0:00:00]} Nxd4 {[%emt 0:00:10]} 17. Bxd4 {[%emt 0:00:00]} b5 {[%emt 0:02:15]} 18. f5 {[%emt 0:01:50]} bxc4 {[%emt 0:00:54]} 19. bxc4 {[%emt 0:00:05]} e5 {[%emt 0:01:29]} 20. dxe6 {[%emt 0:02:18]} fxe6 {[%emt 0:00:46]} 21. f6 {[%emt 0:01:13]} Bh6 {[%emt 0:00:05]} 22. Rc3 {[%emt 0:00:05]} Rf7 {[%emt 0:00:14]} 23. Qe2 {[%emt 0:00:56]} e5 {[%emt 0:00:55]} 24. Bb6 {[%emt 0:00:23]} Qe6 {[%emt 0:00:43]} 25. Qe4 {[%emt 0:00:27]} d5 {[%emt 0:00:32]} 26. Qh4 {[%emt 0:00:24]} Qxb6+ {[%emt 0:00:02]} 27. c5 {[%emt 0:00:02]} Rxc5 {[%emt 0:00:28]} 28. Qf2 {[%emt 0:00:12]} d4 {[%emt 0:00:02]} 29. Rxc5 {[%emt 0:00:05]} Be3 {[%emt 0:00:10]} 30. Rc8+ {[%emt 0:00:05]} Rf8 {[%emt 0:00:01]} 31. f7+ {[%emt 0:00:02]} Kg7 {[%emt 0:00:02]} 32. Rxf8 {[%emt 0:00:06]} Bxf2+ {[%emt 0:00:01]} 33. Rxf2 {[%emt 0:00:06]} Kxf8 {[%emt 0:00:02]} 34. g3 {[%emt 0:00:05]} d3 {[%emt 0:00:03]} 35. Kg2 {[%emt 0:00:02]} Qc6+ {[%emt 0:00:04]} 36. Kh3 {[%emt 0:00:03]} Qd7+ {[%emt 0:00:05]} 37. Kg2 {[%emt 0:00:08]} d2 {[%emt 0:00:01]} 0-1

[Event "European Online Club-ch-G 2021"]
[Site "Online"]
[Date "2021.03.27"]
[Round "4.9"]
[White "Flear, Glenn C"]
[Black "Harvey, Marcus R"]
[Result "1/2-1/2"]
[ECO "E11"]
[WhiteElo "2431"]
[BlackElo "2440"]
[Annotator "NA"]
[PlyCount "87"]
[EventDate "2021.03.27"]
[EventType "team-tourn"]
[EventCountry "NET"]
[SourceTitle "playchess.com"]
[Source "ChessBase"]
[SourceQuality "1"]
[TimeControl "900+5"]

1. d4 {[%emt 0:00:00]} Nf6 {[%emt 0:00:04]} 2. c4 {[%emt 0:00:03]} e6 {[%emt 0:00:01]} 3. Nf3 {[%emt 0:00:03]} Bb4+ {[%emt 0:00:14]} 4. Nbd2 {[%emt 0:00:03]} O-O {[%emt 0:00:02]} 5. a3 {[%emt 0:00:05]} Bxd2+ {[%emt 0:00:02]} 6. Qxd2 {[%emt 0:00:05]} d5 {[%emt 0:00:06]} 7. e3 {[%emt 0:00:45]} Nbd7 {[%emt 0:00:44]} 8. Qc2 {[%emt 0:00:20]} b6 {[%emt 0:00:52]} 9. b3 {[%emt 0:00:11]} a5 {[%emt 0:00:28]} 10. cxd5 {[%emt 0:01:51]} exd5 {[%emt 0:00:24]} 11. Bb5 {[%emt 0:00:07]} Ba6 {[%emt 0:00:29]} 12. a4 {[%emt 0:00:44]} c5 {[%emt 0:00:40]} 13. Bxa6 {[%emt 0:00:28]} Rxa6 {[%emt 0:00:05]} 14. O-O {[%emt 0:00:07]} Ra7 {[%emt 0:01:06]} 15. Rd1 {[%emt 0:00:45]} Rc7 {[%emt 0:00:19]} 16. dxc5 {[%emt 0:00:53]} Nxc5 {[%emt 0:01:48]} 17. Qb2 {[%emt 0:01:05]} Qc8 {[%emt 0:01:29]} 18. Bd2 {[%emt 0:00:57]} Qa6 {[%emt 0:01:20]} 19. Be1 {[%emt 0:02:33]} Nd3 {[%emt 0:01:13]} 20. Qe2 {[%emt 0:00:18]} Nb4 {[%emt 0:00:06]} 21. Qxa6 {[%emt 0:00:25]} Nxa6 {[%emt 0:00:00]} 22. Rac1 {[%emt 0:00:09]} Rfc8 {[%emt 0:00:05]} 23. Rxc7 {[%emt 0:00:04]} Rxc7 {[%emt 0:00:00]} 24. Nd4 {[%emt 0:00:05]} Nc5 {[%emt 0:01:16]} 25. f3 {[%emt 0:00:57]} Ne6 {[%emt 0:00:10]} 26. Nb5 {[%emt 0:01:08]} Rc5 {[%emt 0:00:57]} 27. Bg3 {[%emt 0:00:28]} h6 {[%emt 0:01:16]} 28. Be5 {[%emt 0:00:08]} Ne8 {[%emt 0:00:31]} 29. Rd2 {[%emt 0:00:25]} f6 {[%emt 0:00:10]} 30. Bb2 {[%emt 0:00:09]} N8c7 {[%emt 0:00:13]} 31. Nxc7 {[%emt 0:00:21]} Nxc7 {[%emt 0:00:00]} 32. Kf2 {[%emt 0:00:05]} Kf7 {[%emt 0:00:05]} 33. Ke2 {[%emt 0:00:09]} Ke6 {[%emt 0:00:09]} 34. g4 {[%emt 0:00:05]} b5 {[%emt 0:00:14]} 35. Bd4 {[%emt 0:00:18]} Rc6 {[%emt 0:00:01]} 36. axb5 {[%emt 0:00:22]} Nxb5 {[%emt 0:00:03]} 37. Ra2 {[%emt 0:00:35]} Nxd4+ {[%emt 0:00:16]} 38. exd4 {[%emt 0:00:03]} Rc3 {[%emt 0:00:06]} 39. h4 {[%emt 0:00:13]} Rxb3 {[%emt 0:00:08]} 40. Rxa5 {[%emt 0:00:03]} Rb2+ {[%emt 0:00:02]} 41. Ke3 {[%emt 0:00:03]} Rb3+ {[%emt 0:00:01]} 42. Ke2 {[%emt 0:00:03]} Rb2+ {[%emt 0:00:01]} 43. Ke3 {[%emt 0:00:02]} Rb3+ {[%emt 0:00:01]} 44. Ke2 {[%emt 0:00:02]} 1/2-1/2

[Event "European Online Club-ch-G 2021"]
[Site "Online"]
[Date "2021.03.27"]
[Round "4.10"]
[White "Greet, Andrew N"]
[Black "Boyer, Mahel"]
[Result "0-1"]
[ECO "B00"]
[WhiteElo "2417"]
[BlackElo "2333"]
[Annotator "NA"]
[PlyCount "62"]
[EventDate "2021.03.27"]
[EventType "team-tourn"]
[EventCountry "NET"]
[SourceTitle "playchess.com"]
[Source "ChessBase"]
[SourceQuality "1"]
[TimeControl "900+5"]

1. e4 {[%emt 0:00:00]} Nc6 {[%emt 0:00:01]} 2. Nf3 {[%emt 0:00:05]} d5 {[%emt 0:00:01]} 3. exd5 {[%emt 0:00:02]} Qxd5 {[%emt 0:00:00]} 4. Nc3 {[%emt 0:00:02]} Qh5 {[%emt 0:00:01]} 5. Be2 {[%emt 0:01:53]} Bg4 {[%emt 0:00:02]} 6. h3 {[%emt 0:01:34]} O-O-O {[%emt 0:00:02]} 7. O-O {[%emt 0:00:47]} Bxh3 {[%emt 0:00:03]} 8. gxh3 {[%emt 0:00:23]} Qxh3 {[%emt 0:00:00]} 9. d3 {[%emt 0:01:55]} Nf6 {[%emt 0:00:06]} 10. Bf4 {[%emt 0:00:58]} g5 {[%emt 0:00:03]} 11. Bg3 {[%emt 0:00:14]} Rg8 {[%emt 0:00:02]} 12. Re1 {[%emt 0:00:07]} h5 {[%emt 0:00:36]} 13. Bf1 {[%emt 0:00:07]} Qf5 {[%emt 0:00:03]} 14. Ne5 {[%emt 0:00:49]} h4 {[%emt 0:00:31]} 15. Bh2 {[%emt 0:00:34]} g4 {[%emt 0:00:03]} 16. Nxc6 {[%emt 0:01:45]} g3 {[%emt 0:00:02]} 17. Bg2 {[%emt 0:04:09]} gxf2+ {[%emt 0:01:05]} 18. Kh1 {[%emt 0:00:05]} fxe1=R+ {[%emt 0:00:10]} 19. Qxe1 {[%emt 0:00:02]} bxc6 {[%emt 0:00:05]} 20. Qe3 {[%emt 0:00:46]} Ng4 {[%emt 0:02:09]} 21. Qxa7 {[%emt 0:00:10]} Nf2+ {[%emt 0:00:11]} 22. Kg1 {[%emt 0:00:01]} Rxg2+ {[%emt 0:00:24]} 23. Kxg2 {[%emt 0:00:02]} h3+ {[%emt 0:00:01]} 24. Kg1 {[%emt 0:00:22]} Qg4+ {[%emt 0:00:02]} 25. Kxf2 {[%emt 0:00:02]} Qg2+ {[%emt 0:00:02]} 26. Ke3 {[%emt 0:00:04]} Bh6+ {[%emt 0:00:10]} 27. Bf4 {[%emt 0:00:02]} Qg3+ {[%emt 0:00:10]} 28. Ke2 {[%emt 0:00:02]} Qg4+ {[%emt 0:00:09]} 29. Ke1 {[%emt 0:00:11]} Bxf4 {[%emt 0:00:04]} 30. Ne4 {[%emt 0:00:05]} h2 {[%emt 0:00:59]} 31. Nc5 {[%emt 0:00:06]} h1=R+ {[%emt 0:00:14]} 0-1

[Event "European Online Club-ch-G 2021"]
[Site "Online"]
[Date "2021.03.27"]
[Round "4.11"]
[White "Favarel, Camille"]
[Black "Sukandar, Irine Kharisma"]
[Result "0-1"]
[ECO "E39"]
[WhiteElo "2188"]
[BlackElo "2413"]
[Annotator "NA"]
[PlyCount "66"]
[EventDate "2021.03.27"]
[EventType "team-tourn"]
[EventCountry "NET"]
[SourceTitle "playchess.com"]
[Source "ChessBase"]
[SourceQuality "1"]
[TimeControl "900+5"]

1. d4 {[%emt 0:00:00]} Nf6 {[%emt 0:00:04]} 2. c4 {[%emt 0:00:04]} e6 {[%emt 0:00:04]} 3. Nc3 {[%emt 0:00:03]} Bb4 {[%emt 0:00:04]} 4. Qc2 {[%emt 0:00:03]} c5 {[%emt 0:00:15]} 5. dxc5 {[%emt 0:00:03]} O-O {[%emt 0:00:18]} 6. Nf3 {[%emt 0:00:04]} Bxc5 {[%emt 0:00:17]} 7. Bg5 {[%emt 0:00:50]} h6 {[%emt 0:00:08]} 8. h4 {[%emt 0:01:07]} Nc6 {[%emt 0:00:42]} 9. e3 {[%emt 0:00:05]} b6 {[%emt 0:00:38]} 10. a3 {[%emt 0:00:07]} Bb7 {[%emt 0:00:35]} 11. O-O-O {[%emt 0:00:42]} Be7 {[%emt 0:00:15]} 12. Be2 {[%emt 0:01:43]} Rc8 {[%emt 0:00:12]} 13. Kb1 {[%emt 0:02:25]} Na5 {[%emt 0:00:26]} 14. Ne5 {[%emt 0:02:26]} d6 {[%emt 0:01:00]} 15. b4 {[%emt 0:00:51]} Qe8 {[%emt 0:01:37]} 16. Bxf6 {[%emt 0:01:32]} Bxf6 {[%emt 0:00:13]} 17. Ng4 {[%emt 0:00:02]} Bxc3 {[%emt 0:01:21]} 18. Qxc3 {[%emt 0:00:07]} Nxc4 {[%emt 0:00:04]} 19. Rd4 {[%emt 0:01:39]} Ne5 {[%emt 0:00:52]} 20. Qb2 {[%emt 0:00:30]} Nxg4 {[%emt 0:00:08]} 21. Rxg4 {[%emt 0:00:03]} e5 {[%emt 0:00:04]} 22. h5 {[%emt 0:00:28]} f5 {[%emt 0:00:42]} 23. Rg6 {[%emt 0:00:05]} Be4+ {[%emt 0:00:04]} 24. Ka1 {[%emt 0:00:02]} Rc2 {[%emt 0:00:08]} 25. Qb3+ {[%emt 0:00:10]} Qf7 {[%emt 0:01:00]} 26. Qxf7+ {[%emt 0:00:09]} Kxf7 {[%emt 0:00:26]} 27. Bf3 {[%emt 0:00:49]} Rd8 {[%emt 0:00:11]} 28. Rf1 {[%emt 0:00:53]} d5 {[%emt 0:00:17]} 29. Bd1 {[%emt 0:00:08]} Rc1+ {[%emt 0:00:04]} 30. Kb2 {[%emt 0:00:01]} Rb1+ {[%emt 0:00:07]} 31. Ka2 {[%emt 0:00:03]} Rc8 {[%emt 0:00:24]} 32. f3 {[%emt 0:00:16]} Bd3 {[%emt 0:00:02]} 33. Rh1 {[%emt 0:00:10]} Rcc1 {[%emt 0:00:10]} 0-1

[Event "European Online Club-ch-G 2021"]
[Site "Online"]
[Date "2021.03.27"]
[Round "4.12"]
[White "Derakhshani, Borna"]
[Black "Collier, Timothy"]
[Result "1-0"]
[ECO "B13"]
[WhiteElo "2373"]
[BlackElo "2074"]
[Annotator "NA"]
[PlyCount "37"]
[EventDate "2021.03.27"]
[EventType "team-tourn"]
[EventCountry "NET"]
[SourceTitle "playchess.com"]
[Source "ChessBase"]
[SourceQuality "1"]
[TimeControl "900+5"]

1. d4 {[%emt 0:00:00]} d5 {[%emt 0:00:03]} 2. Bf4 {[%emt 0:00:03]} c5 {[%emt 0:00:05]} 3. e3 {[%emt 0:00:01]} cxd4 {[%emt 0:00:05]} 4. exd4 {[%emt 0:00:02]} Nc6 {[%emt 0:00:02]} 5. c3 {[%emt 0:00:08]} Bf5 {[%emt 0:00:03]} 6. Nf3 {[%emt 0:00:02]} e6 {[%emt 0:00:06]} 7. Qb3 {[%emt 0:00:58]} Qd7 {[%emt 0:01:09]} 8. Bb5 {[%emt 0:00:08]} f6 {[%emt 0:00:19]} 9. O-O {[%emt 0:00:06]} Bd6 {[%emt 0:00:03]} 10. Bxc6 {[%emt 0:00:44]} bxc6 {[%emt 0:00:12]} 11. Bxd6 {[%emt 0:00:01]} Qxd6 {[%emt 0:00:08]} 12. Qb7 {[%emt 0:00:02]} Rb8 {[%emt 0:01:57]} 13. Qxg7 {[%emt 0:00:05]} Rxb2 {[%emt 0:00:04]} 14. Qxh8 {[%emt 0:00:12]} Kf8 {[%emt 0:00:01]} 15. Nbd2 {[%emt 0:00:44]} Bd3 {[%emt 0:00:10]} 16. Rfe1 {[%emt 0:00:20]} Bf5 {[%emt 0:00:21]} 17. Nb3 {[%emt 0:00:43]} Be4 {[%emt 0:00:41]} 18. Nc5 {[%emt 0:00:28]} Bxf3 {[%emt 0:00:50]} 19. Nxe6+ {[%emt 0:00:04]} 1-0

[Event "European Online Club-ch-G 2021"]
[Site "Online"]
[Date "2021.03.27"]
[Round "4.13"]
[White "Grachev, Boris"]
[Black "Gazik, Viktor"]
[Result "1/2-1/2"]
[ECO "A48"]
[WhiteElo "2619"]
[BlackElo "2542"]
[Annotator "ChessBase"]
[PlyCount "86"]
[EventDate "2021.03.27"]
[EventType "team-tourn"]
[EventCountry "NET"]
[SourceTitle "playchess.com"]
[Source "ChessBase"]
[SourceQuality "1"]
[TimeControl "900+5"]

1. d4 {[%emt 0:00:00]} Nf6 {[%emt 0:00:01]} 2. Nf3 {[%emt 0:00:05]} d6 {[%emt 0:00:13]} 3. c3 {[%emt 0:00:17]} g6 {[%emt 0:00:02]} 4. Bf4 {[%emt 0:00:03]} Bg7 {[%emt 0:00:01]} 5. h3 {[%emt 0:00:01]} O-O {[%emt 0:00:01]} 6. Nbd2 {[%emt 0:00:03]} c5 {[%emt 0:00:03]} 7. dxc5 {[%emt 0:00:05]} dxc5 {[%emt 0:00:00]} 8. e4 {[%emt 0:00:01]} Nc6 {[%emt 0:00:01]} 9. Qc2 {[%emt 0:00:13]} Nh5 {[%emt 0:00:13]} 10. Bh2 {[%emt 0:00:02]} Be6 {[%emt 0:00:14]} 11. Ng5 {[%emt 0:01:14]} Bd7 {[%emt 0:00:21]} 12. Be2 {[%emt 0:00:07]} Bh6 {[%emt 0:00:26]} 13. Bxh5 {[%emt 0:00:32]} Bxg5 {[%emt 0:00:03]} 14. Be2 {[%emt 0:00:02]} Be6 {[%emt 0:00:22]} 15. Nf3 {[%emt 0:00:07]} Bh6 {[%emt 0:00:20]} 16. O-O {[%emt 0:00:03]} Qb6 {[%emt 0:00:14]} 17. b3 {[%emt 0:01:06]} Rfd8 {[%emt 0:01:10]} 18. Rfd1 {[%emt 0:00:17]} Qa5 {[%emt 0:01:08]} 19. Ne5 {[%emt 0:00:39]} Nxe5 {[%emt 0:03:06]} 20. Bxe5 {[%emt 0:00:03]} a6 {[%emt 0:00:07]} 21. c4 {[%emt 0:01:51]} Bg7 {[%emt 0:01:20]} 22. Bxg7 {[%emt 0:00:06]} Kxg7 {[%emt 0:00:00]} 23. Qb2+ {[%emt 0:00:11]} f6 {[%emt 0:00:09]} 24. e5 {[%emt 0:01:00]} Rxd1+ {[%emt 0:01:01]} 25. Rxd1 {[%emt 0:00:04]} Rd8 {[%emt 0:00:01]} 26. Rxd8 {[%emt 0:00:29]} Qxd8 {[%emt 0:00:00]} 27. exf6+ {[%emt 0:00:02]} exf6 {[%emt 0:00:01]} 28. Bf3 {[%emt 0:00:03]} b6 {[%emt 0:00:06]} 29. Qe2 {[%emt 0:00:08]} Qd6 {[%emt 0:01:40]} 30. Qe4 {[%emt 0:00:25]} a5 {[%emt 0:00:26]} 31. Qb7+ {[%emt 0:00:05]} Kh6 {[%emt 0:00:02]} 32. Bd5 {[%emt 0:00:15]} Bf5 {[%emt 0:00:33]} 33. h4 {[%emt 0:00:53]} Qe5 {[%emt 0:01:26]} 34. Bg8 {[%emt 0:01:40]} g5 {[%emt 0:02:12]} 35. hxg5+ {[%emt 0:00:03]} fxg5 {[%emt 0:00:01]} 36. Qxb6+ {[%emt 0:00:21]} Kg7 {[%emt 0:00:02]} 37. Bd5 {[%emt 0:01:01]} Qe1+ {[%emt 0:00:03]} 38. Kh2 {[%emt 0:00:02]} Qxf2 {[%emt 0:00:00]} 39. Qxa5 {[%emt 0:01:20]} Qh4+ {[%emt 0:00:02]} 40. Kg1 {[%emt 0:00:03]} Qd4+ {[%emt 0:00:04]} 41. Kh1 {[%emt 0:00:08]} Qh4+ {[%emt 0:00:09]} 42. Kg1 {[%emt 0:00:02]} Qd4+ {[%emt 0:00:01]} 43. Kh1 {[%emt 0:00:01]} Qh4+ {[%emt 0:00:03]} 1/2-1/2

[Event "European Online Club-ch-G 2021"]
[Site "Online"]
[Date "2021.03.27"]
[Round "4.14"]
[White "Sahidi, Samir"]
[Black "Motylev, Alexander"]
[Result "0-1"]
[ECO "D45"]
[WhiteElo "2407"]
[BlackElo "2641"]
[Annotator "ChessBase"]
[PlyCount "48"]
[EventDate "2021.03.27"]
[EventType "team-tourn"]
[EventCountry "NET"]
[SourceTitle "playchess.com"]
[Source "ChessBase"]
[SourceQuality "1"]
[TimeControl "900+5"]

1. c4 {[%emt 0:00:00]} e6 {[%emt 0:00:27]} 2. Nf3 {[%emt 0:00:34]} d5 {[%emt 0:00:02]} 3. d4 {[%emt 0:00:12]} Nf6 {[%emt 0:00:03]} 4. Nc3 {[%emt 0:00:28]} c6 {[%emt 0:00:02]} 5. e3 {[%emt 0:00:30]} Nbd7 {[%emt 0:00:04]} 6. a3 {[%emt 0:00:30]} b6 {[%emt 0:00:30]} 7. Be2 {[%emt 0:00:18]} Bb7 {[%emt 0:00:03]} 8. cxd5 {[%emt 0:00:10]} exd5 {[%emt 0:00:06]} 9. b3 {[%emt 0:00:13]} Bd6 {[%emt 0:00:03]} 10. Bb2 {[%emt 0:00:05]} O-O {[%emt 0:00:02]} 11. O-O {[%emt 0:00:01]} Qe7 {[%emt 0:00:10]} 12. Qc2 {[%emt 0:00:29]} Rfe8 {[%emt 0:00:18]} 13. Nd2 {[%emt 0:00:22]} Nf8 {[%emt 0:00:27]} 14. Rfd1 {[%emt 0:00:13]} Ne6 {[%emt 0:00:11]} 15. b4 {[%emt 0:01:19]} Ng5 {[%emt 0:00:23]} 16. Bf1 {[%emt 0:01:07]} Bxh2+ {[%emt 0:04:01]} 17. Kxh2 {[%emt 0:01:57]} Ng4+ {[%emt 0:00:06]} 18. Kg1 {[%emt 0:01:47]} Qd6 {[%emt 0:01:06]} 19. g3 {[%emt 0:00:23]} Qh6 {[%emt 0:02:38]} 20. Bg2 {[%emt 0:00:24]} Qh2+ {[%emt 0:00:15]} 21. Kf1 {[%emt 0:00:09]} Rxe3 {[%emt 0:00:04]} 22. Re1 {[%emt 0:02:01]} Nh3 {[%emt 0:02:25]} 23. Nf3 {[%emt 0:01:21]} Qg1+ {[%emt 0:00:42]} 24. Nxg1 {[%emt 0:00:26]} Nh2# {[%emt 0:00:04]} 0-1